Cogmind - Beta 14 @@@ ROGUE MODE // 2024.11.30 @ 12:33:57 Player: Chloroform Result: Destroyed by H-66 Slayer with Heavy Assault Rifle Performance ------------- Evolutions (4) 2000 Regions Visited (8) 1600 Robots Destroyed (43) 215 Value Destroyed (1064) 1064 Prototype IDs (3) 60 Alien Tech Used (0) 0 Bonus (749) 749 TOTAL SCORE: 5688 Bonus ------- Entered DSFs 500 Aligned with FarCom 300 Friendly Fire -51 Cogmind --------- Core Integrity 0/850 Matter 201/300 Energy 99/100 System Corruption 6% Temperature Cool (0) Movement Core (50) Location -6/Factory Parts ------- > --- POWER (3) -------- (None) > --- PROPULSION (6) --- (None) > --- UTILITY (4) ------ (None) > --- WEAPON (2) ------- (None) > --- INVENTORY (5) ---- Compact Battery (200) Microactuators Authchip [Propulsion] Greatsword Peak State ------------ > --- POWER ------------ Light Deuterium Engine Micro Nuclear Core Micro Nuclear Core > --- PROPULSION ------- Flight Unit Flight Unit Flight Unit Flight Unit > --- UTILITY ---------- Small Storage Unit Improved Signal Interpreter Advanced ECM Suite Cloaking Device > --- WEAPON ----------- Heavy Mace Heavy Pick > --- INVENTORY -------- Compact Battery Advanced Sensor Array Microactuators Transmission Jammer Authchip [Propulsion] Greatsword [Rating: 38] Favorites ----------- Power Ion Engine Engine Ion Engine Power Core Light Nuclear Core Propulsion Aluminum Leg Leg Aluminum Leg Flight Unit Flight Unit Utility Medium Storage Unit Device Heat Sink Storage Medium Storage Unit Processor Improved Signal Interpreter Hackware Hacking Suite Weapon Grenade Launcher Energy Gun EM Pulse Gun Energy Cannon Guided Plasma Cannon Ballistic Gun AWS/Gauss Launcher Grenade Launcher Impact Weapon Mace Piercing Weapon Heavy Pick Build | -11 -10 -10 -10 -9 -8 -7 -7 -6 ------- Run | Yrd Mat Min Exi Min Mat Fac DSF Fac Slots Evolved 8 | . . . . . 4 2 . 2 Power 2 | . . . . . 1 . . 1 Propulsion 4 | . . . . . 2 1 . 1 Utility 2 | . . . . . 1 1 . . Weapon . | . . . . . . . . . Parts Attached 62 | . 11 6 9 3 16 9 3 5 Power 13 | . 1 1 1 1 4 3 . 2 Engine 8 | . 1 . 1 1 3 1 . 1 Core 5 | . . 1 . . 1 2 . 1 Reactor . | . . . . . . . . . Propulsion 14 | . 2 4 . 2 3 2 . 1 Treads . | . . . . . . . . . Leg 6 | . 2 4 . . . . . . Wheel . | . . . . . . . . . Hover . | . . . . . . . . . Flight 8 | . . . . 2 3 2 . 1 Utility 19 | . 2 1 1 . 7 4 3 1 Device 10 | . 1 1 . . 2 3 2 1 Storage 6 | . 1 . 1 . 4 . . . Processor 1 | . . . . . . . 1 . Hackware 2 | . . . . . 1 1 . . Protection . | . . . . . . . . . Artifact . | . . . . . . . . . Weapon 16 | . 6 . 7 . 2 . . 1 Energy Gun 3 | . 3 . . . . . . . Energy Cannon 2 | . . . 2 . . . . . Ballistic Gun 3 | . . . 3 . . . . . Ballistic Cannon . | . . . . . . . . . Launcher 5 | . 3 . 2 . . . . . Special Weapon . | . . . . . . . . . Impact Weapon 2 | . . . . . 2 . . . Slashing Weapon . | . . . . . . . . . Piercing Weapon 1 | . . . . . . . . 1 Special Melee Weapon . | . . . . . . . . . Unidentified Prototypes 3 | . . . 3 . . . . . Parts Lost 16 | . 2 . . . 1 . 3 10 Power 5 | . . . . . 1 . 1 3 Propulsion 6 | . . . . . . . 2 4 Utility 2 | . . . . . . . . 2 Weapon 3 | . 2 . . . . . . 1 Highest Loss Streak 5 | . 1 . . . 1 . 3 5 To Critical Strikes . | . . . . . . . . . Average Slot Usage (%) 87 | . 95 100 92 84 89 91 87 46 Engine 9 | . 13 4 5 13 17 14 5 1 Core 3 | . . 9 8 . . . 7 5 Leg 19 | . 28 28 28 17 . . . . Flight 6 | . . . . 10 36 37 35 9 Device 9 | . 9 14 12 . 7 14 13 9 Storage 14 | . 14 14 15 28 17 8 7 5 Energy Gun 5 | . 16 . . . . . . . Ballistic Gun 2 | . . . 5 14 . . . . Launcher 10 | . 11 28 14 . . . . . Impact Weapon 1 | . . . . . 8 7 7 . Peak Build Rating 38 | . 8 10 29 25 26 30 27 38 Average Rating 14 | . 7 9 16 22 17 23 26 23 On Entrance 15 | 6 6 8 10 25 22 14 27 24 Naked Turns 25 | . . . . . . . . 25 Heaviest Build 34 | 13 22 22 34 29 16 20 21 29 Greatest Support 20 | 20 20 20 20 20 16 20 20 16 Greatest Overweight (x) 5 | . 1 1 1 3 . . 1 5 Average Overweight (x) . | . . 1 1 1 . . . 1 Largest Inventory Capacity 10 | . 10 10 10 10 10 8 8 8 Average Capacity 9 | . 9 10 10 10 8 8 8 7 Most Carried 10 | . 10 10 10 10 8 8 8 8 Average Carried 8 | . 8 9 9 9 4 5 7 7 Final Capacity 10 | 8 10 10 10 10 8 8 8 5 Final Carried 10 | 6 10 10 10 9 6 8 8 5 Class Distribution -------------------- 74% | Mutant 10% | Scavenger-Mutant 10% | Scavenger-Sprinter 4% | Infiltrator-Mutant Dominant Class ---------------- Mutant | -10/Materials Mutant | -10/Mines Mutant | -10/Exiles Mutant | -9/Mines Scavenger-Sprinter | -8/Materials Scavenger-Sprinter | -7/Factory Scavenger-Sprinter | -7/DSF Infiltrator-Mutant | -6/Factory Resources | -11 -10 -10 -10 -9 -8 -7 -7 -6 ----------- Run | Yrd Mat Min Exi Min Mat Fac DSF Fac Matter Collected 946 | 188 237 222 . 160 33 57 7 42 Remotely . | . . . . . . . . . Salvage Created 997 | . 462 208 . 195 33 57 . 42 Parts 77 | . 36 18 . 19 . 1 . 3 Haulers Intercepted 2 | . 1 . . . . 1 . . Recyclers Shooed 4 | . 2 2 . . . . . . Parts Field Recycled . | . . . . . . . . . Retrieved Matter . | . . . . . . . . . Parts Self-Destructed . | . . . . . . . . . Prevented . | . . . . . . . . . Kills | -11 -10 -10 -10 -9 -8 -7 -7 -6 ------- Run | Yrd Mat Min Exi Min Mat Fac DSF Fac Combat Hostiles Destroyed 34 | . 14 10 . 9 . . . 1 Melee 1 | . . . . . . . . 1 Guns 11 | . 3 . . 8 . . . . AOE 21 | . 10 10 . 1 . . . . Classes Destroyed 7 | . 5 1 . . . . . 1 Worker 2 | . . 1 . . 1 . . . Hauler 2 | . 1 . . . . 1 . . Operator 2 | . 1 . . . 1 . . . Watcher 3 | . 3 . . . . . . . Swarmer 13 | . 3 3 . 7 . . . . Grunt 20 | . 11 7 . 2 . . . . Programmer 1 | . . . . . . . . 1 Best Kill Streak 6 | . 5 3 . 6 2 1 . 1 Combat Bots Only 6 | . 5 3 . 6 . . . 1 Max Kills in Single Turn 3 | . 3 3 . 1 1 1 . 1 Gunslinging . | . . . . . . . . . Exploded 3 | . 3 3 . 1 . . . . Melee 1 | . . . . . . . . 1 Uniques/NPCs Destroyed . | . . . . . . . . . Combat | -11 -10 -10 -10 -9 -8 -7 -7 -6 -------- Run | Yrd Mat Min Exi Min Mat Fac DSF Fac Hostile Shots Fired 314 | . 44 23 . 28 18 . 3 198 Missed 107 | . 15 7 . 3 7 . 1 74 Damage Taken 2383 | . 386 245 . 215 170 . 85 1282 Core 1010 | . 49 37 . 43 17 . 9 855 Absorbed by Shields . | . . . . . . . . . Regen/Repaired (Parts) 73 | . 55 . . . . 18 . . Core Remaining (%) 85 | 100 . . . 48 96 . 98 . Volleys Fired 51 | . 42 9 . . . . . . Largest 2 | . 2 2 . . . . . . Hottest 80 | . 80 60 . . . . . . Shots Fired 115 | . 70 18 . 27 . . . . Gun 81 | . 54 . . 27 . . . . Cannon . | . . . . . . . . . Launcher 34 | . 16 18 . . . . . . Special . | . . . . . . . . . Kinetic 27 | . . . . 27 . . . . Thermal . | . . . . . . . . . Explosive 34 | . 16 18 . . . . . . Electromagnetic 54 | . 54 . . . . . . . Robot Hit Streak 9 | . 9 2 . 8 . . . . Robot Miss Streak 4 | . 2 4 . 4 . . . . Penetration Max . | . . . . . . . . . Secondary Targets 1 | . 1 . . . . . . . Max Gunslinging Chain 1 | . 1 . . . . . . . Autonomous 27 | . . . . 27 . . . . Shots Hit Robots 73 | . 43 4 . 16 4 1 . 5 Core Hits 67 | . 35 20 . 8 . . . 4 Critical Kills . | . . . . . . . . . Critical Parts Destroyed 1 | . . . . . 1 . . . Critical Strikes 2 | . 1 . . . 1 . . . Corrupt 1 | . 1 . . . . . . . Smash 1 | . . . . . 1 . . . Melee Attacks 49 | . . . . . 41 1 . 7 Impact 42 | . . . . . 41 1 . . Slashing . | . . . . . . . . . Piercing 7 | . . . . . . . . 7 Sneak Attacks 4 | . . . . . 3 1 . . Combat Hostiles . | . . . . . . . . . Follow-up Attacks . | . . . . . . . . . Damage Inflicted 3173 | . 1333 817 . 537 165 148 . 173 Guns 1039 | . 549 . . 490 . . . . Cannons . | . . . . . . . . . Explosions 1605 | . 757 801 . 47 . . . . Melee 473 | . . . . . 165 148 . 160 Ramming 56 | . 27 16 . . . . . 13 Kinetic 490 | . . . . 490 . . . . Thermal 47 | . . . . 47 . . . . Explosive 1558 | . 757 801 . . . . . . Electromagnetic 549 | . 549 . . . . . . . Impact 313 | . . . . . 165 148 . . Slashing . | . . . . . . . . . Piercing 160 | . . . . . . . . 160 Highest Corruption 6 | . . . . . . 1 1 6 Average Corruption 3 | . . . . . . 1 1 4 Corruption Purged . | . . . . . . . . . Corruption Blocked . | . . . . . . . . . Effects 4 | . . . . . . . 1 3 Message Errors 1 | . . . . . . . . 1 Matter Fused 1 | . . . . . . . . 1 Heat Flow Errors 1 | . . . . . . . . 1 Energy Discharges 1 | . . . . . . . 1 . Overload Shots . | . . . . . . . . . Overflow Damage 282 | . 8 10 . 19 90 128 . 27 Projectiles . | . . . . . . . . . Explosions 37 | . 8 10 . 19 . . . . Melee 245 | . . . . . 90 128 . 27 Knockbacks 2 | . . 2 . . . . . . Impact 2 | . . 2 . . . . . . Kinetic . | . . . . . . . . . Secondary . | . . . . . . . . . Self-Inflicted Damage 92 | . 41 46 . . . . . 5 Shots 5 | . 2 3 . . . . . . Rammed 9 | . . . . . . . . 9 Targets Rammed 19 | . 7 3 . . . . . 9 Kicked 10 | . 7 3 . . . . . . Crushed . | . . . . . . . . . Highest Temperature 217 | . 217 7 . . 12 12 . 159 Average Temperature 55 | . 94 4 . . 5 2 . 85 Received Heat Transfer 621 | . 192 99 . 18 72 . . 240 Siege Activations . | . . . . . . . . . Robots Corrupted 4 | . 1 . . . 2 1 . . Combat Hostiles 1 | . 1 . . . . . . . Parts Fried 4 | . 1 . . . 2 1 . . Impact Corruptions 6 | . . . . . 5 1 . . Robots Melted . | . . . . . . . . . Combat Hostiles . | . . . . . . . . . Parts Melted . | . . . . . . . . . Heat Transferred 50 | . . . . 50 . . . . Parts Sabotaged . | . . . . . . . . . Parts Stolen . | . . . . . . . . . Parts Stripped . | . . . . . . . . . Power Chain Reactions . | . . . . . . . . . Alert | -11 -10 -10 -10 -9 -8 -7 -7 -6 ------- Run | Yrd Mat Min Exi Min Mat Fac DSF Fac Peak Influence 333 | . 298 232 . 333 292 206 144 59 Initial 144 | . . 72 . . 51 132 144 59 Average 137 | . 121 144 . 232 213 159 142 24 Maximum Alert Level 1 | . 1 1 . 1 1 1 . . Low Security (%) 72 | . 83 78 . 32 24 92 100 100 Level 1 27 | . 16 21 . 67 75 7 . . Level 2 . | . . . . . . . . . Level 3 . | . . . . . . . . . Level 4 . | . . . . . . . . . Level 5 . | . . . . . . . . . High Security . | . . . . . . . . . Max Security . | . . . . . . . . . Squads Dispatched 11 | . 2 1 . . 2 2 1 3 Investigation 6 | . 1 1 . . 1 2 . 1 Extermination 2 | . . . . . . . . 2 Reinforcement 3 | . 1 . . . 1 . 1 . Assault . | . . . . . . . . . Garrison . | . . . . . . . . . Intercept . | . . . . . . . . . Searches Triggered . | . . . . . . . . . Construction Impeded . | . . . . . . . . . Haulers Reinforced . | . . . . . . . . . Active Scanning Responses . | . . . . . . . . . Cargo Convoy Interrupts . | . . . . . . . . . Stealth | -11 -10 -10 -10 -9 -8 -7 -7 -6 --------- Run | Yrd Mat Min Exi Min Mat Fac DSF Fac Distress Signals 2 | . . 1 . . 1 . . . Communications Jammed . | . . . . . . . . . Distress Signals . | . . . . . . . . . Times Spotted 66 | . 21 15 . 11 11 1 3 4 Peak Tracking Total 8 | . 4 3 . 5 8 1 2 4 Tactical Retreats 12 | . 2 3 . 2 4 . 1 . Traps | -11 -10 -10 -10 -9 -8 -7 -7 -6 ------- Run | Yrd Mat Min Exi Min Mat Fac DSF Fac Traps Triggered 3 | . . . . . . . 1 2 Indirectly . | . . . . . . . . . Trap Hack Attempts . | . . . . . . . . . Triggered . | . . . . . . . . . Disarmed . | . . . . . . . . . Reprogrammed . | . . . . . . . . . Reused . | . . . . . . . . . Traps Extracted . | . . . . . . . . . Installed . | . . . . . . . . . Triggered . | . . . . . . . . . Machines | -11 -10 -10 -10 -9 -8 -7 -7 -6 ---------- Run | Yrd Mat Min Exi Min Mat Fac DSF Fac Machines Disabled 3 | . 1 . . 2 . . . . Max in Single Turn 2 | . 1 . . 2 . . . . Machines Repaired . | . . . . . . . . . Machines Dismantled . | . . . . . . . . . Machines Sabotaged . | . . . . . . . . . Overloaded Fab Kills . | . . . . . . . . . Hacking | -11 -10 -10 -10 -9 -8 -7 -7 -6 --------- Run | Yrd Mat Min Exi Min Mat Fac DSF Fac Machines Accessed 20 | . 8 1 2 . 3 4 . 2 Terminals 12 | . 6 . . . 3 2 . 1 Fabricators 1 | . . . . . . . . 1 Repair Stations 2 | . 1 . . . . 1 . . Recycling Units 1 | . 1 . . . . . . . Scanalyzers . | . . . . . . . . . Garrison Access 1 | . . . . . . 1 . . Total Hacks 52 | . 17 1 16 . 6 8 . 4 Successful 35 | . 10 1 16 . 4 4 . . Failed 17 | . 7 . . . 2 4 . 4 Catastrophic 2 | . . . . . 1 . . 1 Database Lockouts . | . . . . . . . . . Manual 15 | . 9 . 1 . 2 2 . 1 Terminals 23 | . 12 . . . 6 4 . 1 Fabricators 3 | . . . . . . . . 3 Repair Stations 6 | . 3 . . . . 3 . . Recycling Units 2 | . 2 . . . . . . . Scanalyzers . | . . . . . . . . . Garrison Access 1 | . . . . . . 1 . . Terminal Hacks 24 | . 3 1 16 . 3 1 . . Record 17 | . . . 16 . 1 . . . Open Door 1 | . . 1 . . . . . . Open DSF 1 | . . . . . . 1 . . Level Access Points 1 | . 1 . . . . . . . Branch Access Points 2 | . 1 . . . 1 . . . Recall Investigation 1 | . . . . . 1 . . . Zone Layout 1 | . 1 . . . . . . . Fabricator Hacks . | . . . . . . . . . Repair Station Hacks 4 | . 2 . . . . 2 . . Scan Component 2 | . 1 . . . . 1 . . Repair 2 | . 1 . . . . 1 . . Recycling Unit Hacks 2 | . 2 . . . . . . . Retrieve Matter 2 | . 2 . . . . . . . Scanalyzer . | . . . . . . . . . Garrison Access Hacks . | . . . . . . . . . Unauthorized Hacks 5 | . 3 . . . 1 1 . . Terminals 5 | . 3 . . . 1 1 . . Botnet 5 | . 3 . . . 1 1 . . Fabricators . | . . . . . . . . . Repair Stations . | . . . . . . . . . Recycling Units . | . . . . . . . . . Scanalyzers . | . . . . . . . . . Garrison Access . | . . . . . . . . . Data Cores Recovered 1 | . . . . . 1 . . . Used . | . . . . . . . . . Hacking Detections 12 | . 6 . . . 1 3 . 2 Full Trace Events 5 | . 1 . . . 1 2 . 1 Feedback Events 1 | . . . . . . 1 . . Corruption 1 | . . . . . . 1 . . Feedback Blocked . | . . . . . . . . . Robot Schematics Acquired . | . . . . . . . . . Robots Built . | . . . . . . . . . Authchips . | . . . . . . . . . Time . | . . . . . . . . . Total Robot Build Rating . | . . . . . . . . . Part Schematics Acquired . | . . . . . . . . . Parts Built . | . . . . . . . . . Authchips . | . . . . . . . . . Time . | . . . . . . . . . Total Part Build Rating . | . . . . . . . . . Parts Repaired 2 | . 1 . . . . 1 . . Time 39 | . 26 . . . . 13 . . Parts Recycled . | . . . . . . . . . Recycled Matter . | . . . . . . . . . Retrieved Matter . | . . . . . . . . . Retrieved Components . | . . . . . . . . . Parts Scanalyzed . | . . . . . . . . . Part Schematics Acquired . | . . . . . . . . . Parts Damaged . | . . . . . . . . . Bothacking | -11 -10 -10 -10 -9 -8 -7 -7 -6 ------------ Run | Yrd Mat Min Exi Min Mat Fac DSF Fac Used RIF Installer . | . . . . . . . . . Robots Hacked . | . . . . . . . . . Non-combat . | . . . . . . . . . Combat . | . . . . . . . . . Robot Hacks Applied . | . . . . . . . . . Relay Couplers Released . | . . . . . . . . . Fabnet Peak Effective % . | . . . . . . . . . Robots Rewired . | . . . . . . . . . Allies Hacked . | . . . . . . . . . Hacks Repelled . | . . . . . . . . . Allies | -11 -10 -10 -10 -9 -8 -7 -7 -6 -------- Run | Yrd Mat Min Exi Min Mat Fac DSF Fac Total Allies . | . . . . . . . . . Largest Group . | . . . . . . . . . Highest-Rated Group . | . . . . . . . . . Highest-Rated Ally . | . . . . . . . . . Total Orders . | . . . . . . . . . Ally Attacks . | . . . . . . . . . Total Damage . | . . . . . . . . . Kills . | . . . . . . . . . Allies Corrupted . | . . . . . . . . . Allies Melted . | . . . . . . . . . Intel | -11 -10 -10 -10 -9 -8 -7 -7 -6 ------- Run | Yrd Mat Min Exi Min Mat Fac DSF Fac Robot Analysis Total . | . . . . . . . . . Derelict Logs Recovered 2 | . . 1 . 1 . . . . Drone Launches . | . . . . . . . . . Drone Recoveries . | . . . . . . . . . Exploration | -11 -10 -10 -10 -9 -8 -7 -7 -6 ------------- Run | Yrd Mat Min Exi Min Mat Fac DSF Fac Turns Passed 4564 | . 1395 869 616 542 387 119 42 594 Spaces Moved 2850 | 1 768 434 311 239 351 294 96 356 Core 153 | . . . . . . . . 153 Treads . | . . . . . . . . . Legs 1683 | 1 768 434 311 169 . . . . Wheels . | . . . . . . . . . Hover . | . . . . . . . . . Flight 1014 | . . . . 70 351 294 96 203 Fastest Speed 28 | 120 120 190 190 190 31 28 28 50 Average Speed 135 | 120 149 190 190 215 31 28 34 154 Slowest Speed 360 | 120 190 190 190 277 31 28 114 360 Overloaded Moves . | . . . . . . . . . Propulsion Burnouts . | . . . . . . . . . Robots Hopped 1 | . . . . . . 1 . . Cave-ins Triggered . | . . . . . . . . . Exploration Rate (%) 46 | 2 94 84 62 43 31 10 82 11 Regions Visited 8 Branch Regions 3 Pre-discovered Areas . | . . . . . . . . . Known Exits Taken 3 | . 1 . . . 1 1 . . Unknown Exits Taken 4 | 1 . 1 1 1 . . . . Scrap Searched 3 | . . 1 . 2 . . . . Spaces Dug 36 | . . . . . 36 . . . Terrain Destroyed 257 | . 88 92 . 41 36 . . . Melee 36 | . . . . . 36 . . . Projectile 19 | . . . . 19 . . . . AOE 202 | . 88 92 . 22 . . . . Terrain Rammed . | . . . . . . . . . Walls Destroyed . | . . . . . . . . . Machines Disabled . | . . . . . . . . . Actions | -11 -10 -10 -10 -9 -8 -7 -7 -6 --------- Run | Yrd Mat Min Exi Min Mat Fac DSF Fac Total 3412 | . 938 466 341 275 578 327 106 381 Wait 275 | . 92 . . 5 160 18 . . Move 2840 | . 767 433 310 238 350 291 95 356 Hop 1 | . . . . . . 1 . . Pick Up 50 | . 11 5 8 14 4 4 2 2 Fast Attach 12 | . 2 . 2 1 2 1 2 2 Attach 22 | . 2 . 5 . 7 5 . 3 Detach 5 | . . . . . 2 2 . 1 Swap 28 | . 7 6 2 2 7 3 1 . Drop 59 | . 8 10 13 15 5 1 6 1 Fire 51 | . 42 9 . . . . . . Melee 49 | . . . . . 41 1 . 7 Ram 9 | . . . . . . . . 9 Kick 10 | . 7 3 . . . . . . Crush . | . . . . . . . . . Escape Stasis . | . . . . . . . . . Rewire 1 | . . . 1 . . . . . Trap . | . . . . . . . . . Miscellaneous . | . . . . . . . . . Route ------- -11/Scrapyard -10/Materials (discovered 4 exits: *Mat x3 / *Min) -10/Mines (discovered 3 exits: *Mat x2 / *Exi) -10/Exiles (discovered 2 exits: [*Min x2]) -9/Mines -8/Materials (discovered 5 exits: *Fac x3 / *Sto x2) -7/Factory -7/DSF -6/Factory History --------- Turn | Location | Event 1 | -11/Scrapyard | Discovered new exit (range 0) 1 | -11/Scrapyard | Entered Materials 174 | -10/Materials | Discovered new exit (range 15) 326 | -10/Materials | Discovered new exit (range 16) 331 | -10/Materials | Build established: Mutant 819 | -10/Materials | Identified exit to Materials 851 | -10/Materials | Discovered new exit (range 12) 863 | -10/Materials | Identified exit to Mines 938 | -10/Materials | Repaired Ion Engine 1396 | -10/Materials | Entered Mines 1725 | -10/Mines | Discovered exit to Materials (range 5) 2005 | -10/Mines | Deemed a non-threat by the Exiles lab entrance 2005 | -10/Mines | Discovered new exit (range 5) 2098 | -10/Mines | Learned 2 Materials zone layouts 2116 | -10/Mines | Met a Derelict shopkeep closing up shop 2178 | -10/Mines | Discovered exit to Materials (range 6) 2265 | -10/Mines | Entered Exiles 2298 | -10/Exiles | Discovered new exit (range 15) 2324 | -10/Exiles | Met 8R-AWN 2353 | -10/Exiles | Met EX-HEX 2491 | -10/Exiles | Met EX-BIN 2531 | -10/Exiles | Aligned with FarCom system 2532 | -10/Exiles | Given EX-Vault access code 2576 | -10/Exiles | Opened EX-Vault 2590 | -10/Exiles | Found Prototype Energy Cannon 2592 | -10/Exiles | Identified YOLO Cannon 2600 | -10/Exiles | Found Prototype Ballistic Gun 2601 | -10/Exiles | Identified AWS/Gauss 2607 | -10/Exiles | Found Prototype Energy Cannon 2609 | -10/Exiles | Identified Gui. Plasma Cannon 2695 | -10/Exiles | Warned to stay clear of 0b10 Research branches 2750 | -10/Exiles | Met EX-DEC 2856 | -10/Exiles | Discovered new exit (range 14) 2881 | -10/Exiles | Stole three prototypes: AWS/Gauss, Gui. Plasma Cannon, YOLO Cannon 2881 | -10/Exiles | Entered Mines 2995 | -9/Mines | Learned 8 Materials zone layouts 3096 | -9/Mines | Discovered new exit (range 9) 3119 | -9/Mines | Core integrity fell below 50% 3423 | -9/Mines | Entered Materials 3423 | -8/Materials | Evolved 4 slots: Power x1, Propulsion x2, Utility x1 3424 | -8/Materials | Identified exit to Factory 3424 | -8/Materials | Identified exit to Storage 3452 | -8/Materials | Discovered exit to Storage (range 14) 3740 | -8/Materials | Build established: Scavenger-Sprinter 3808 | -8/Materials | Discovered exit to Factory (range 4) 3810 | -8/Materials | Entered Factory 3810 | -7/Factory | Evolved 2 slots: Propulsion x1, Utility x1 3812 | -7/Factory | FarCom data flow suspended 3885 | -7/Factory | Repaired Flight Unit 3924 | -7/Factory | Identified exit to DSF 3929 | -7/Factory | Entered DSF 3952 | -7/DSF | Additional patrols routed to DSF 3954 | -7/DSF | Discovered new exit (range 15) 3969 | -7/DSF | Identified exit to Factory 3971 | -7/DSF | Entered Factory 3971 | -6/Factory | Evolved 2 slots: Power x1, Propulsion x1 4000 | -6/Factory | Lost 3 parts (1p2n) 4180 | -6/Factory | Lost 5 parts (2p3n) 4373 | -6/Factory | Lost 3 parts (1p1n1u) 4518 | -6/Factory | Core integrity fell below 50% 4531 | -6/Factory | Core integrity fell below 20% 4540 | -6/Factory | Released all parts (2) 4565 | -6/Factory | Destroyed by H-66 Slayer with Heavy Assault Rifle Last Messages --------------- 04514_ Slammed into Y-54 Guardian. 04514_ Destabilizing: Core damaged (-42). 04515_ Slammed into Y-54 Guardian. 04517_ Adv. ECM Suite broken. 04517_ Destabilizing: Short circuit. 04518_ Slammed into Y-54 Guardian. 04521_ Destabilizing: System corrupted (+1). 04523_ Slammed into Y-54 Guardian. 04530_ Sml. Storage Unit destroyed. 04540_ Released Imp. Signal Interpreter. 04540_ Released Broken Adv. ECM Suite. 04542_ Slug penetrates Power Conduit. 04543_ Power Conduit explodes. 04543_ K-01 Serf destroyed. 04544_ System corrupted: Matter fused (-7). 04558_ Slug penetrates Wall. 04562_ Penetrated by Slug. 04565_ Slug penetrates Wall. [Achievement: Just Browsing] [Achievement: Achiever] Map ----- +----------------------------------------------------+ | ?????????????????????????????????????????????????? | | ?????????????????????????????????????????????????? | | ?????????????????????????????????????????????????? | | ?????????????????????????????????????????????????? | | ?????????????????????????????????????????????????? | | ?????????????????????????????????????????????????? | | ?????????????????????????????????????????????????? | | ?????????????????????????????????????????????????? | | ?????????????????????????????????????????????????? | | ?????????????????????????????????????????????????? | | ?????????????????????????????????????????????????? | | ????????????????????????###?##########???????????? | | ????????????????????????# ? #???????????? | | ????????????????????????# "" #???????????? | | ????????????????????????# "" !!! #???????????? | | ????????????????????????# """ !!! #???????????? | | ????????????????????????# """ !!! #???????????? | | ?????## ????????????????# """ #???????????? | | ??? ???????????????# #?########### | | ??? ?????????????### #?# | | ??"" ?????????????? + #?# | | #"Y ??############## #?# | | #""" ??# ! # #?# """"" | | # #??# # #?# """"" | | # #??# #/##+#########?# """ | | / #??# """ """ !#@ ^^ #?# | | # #??# """ """ # #?# """"" | | # #??# """ """ + """ "" #?# """"" | | # #??# # """ "F"" #?# """ | | + """ #??# """ """ # """ """" #?# | | # """ #### """ """ # #?# | | # """ + """ """ # ####"" ### | | "" #### # | | "" #??# # | | #??############## h""""""""" " | | #???????????????# | | #???????????????# """"""""" " | | ########???????????????# | | #??????################# """"""""" | | #??????# | | #??????# """"""""" | | +###????# | | #????# | | #????# ! | | #???#####+#############+#############+"" | | #???# #?????? ????????? ! | | #???# """ """ #????"S """ ?????# # | | #???# """ """ #???#""" """ #????# #"""" | | #???# """ """ #???# "" """ #????# #"""" | | #???# #???# #????# #"""" | +----------------------------------------------------+ Best States ------------- Heat Dissipation 37 Energy Generation 34 Energy Capacity 500 Matter Stores 300 Matter Capacity 300 Sight Range 16 Robot Scan Range 14 Terrain Scan Density 10 ECM Strength 2 Jamming Range 12 Cloak Strength 2 Melee Speed Boost 40 Evasion (%) 64 Offensive Hacking 10 Authchip Count 1 Item Schematics ----------------- None Robot Schematics ------------------ None Fabricated ------------ Nothing Alien Tech Used ----------------- None Achievements -------------- Achiever GoHome() Just Browsing Part-time Excavator Challenges ------------ None Game ------ Seed FireMinesnifferExoskeleton Manual? 0 Play Time 00:43:03 Cumulative 16.7 hours Start 2024.11.30 @ 11:54:31 End 2024.11.30 @ 12:33:57 Sessions 1 Manual Loads 0 Difficulty Rogue Special Mode None Game No. 17 Rogue 15 Adventurer 2 Explorer 0 Win Type - Total 0 Types 0/0/0/0/0/0/0/0/0 Lore% 10 Gallery% 25 Achievement% 26 Wizard Run 0 Options --------- Layout 1 ASCII 0 Keyboard 0 Movement Mouse Keybinds 0 Fullscreen 2 Font 24/X11 Map View 50x40 Zoom Use 0% Tactical HUD 1 Map Filters NONE Filters NONE Steam 1 RUN: 693006b4-e832-4734-97e2-ebe6cfa6e729